bitfinex/quotes_ETHUSD_20250222
["timestamp","ask_amount","ask_price","bid_price","bid_amount"]
[1740263417176,4.43001,2777.9,2777.4,0.255]
[1740263417478,3.59997,2777.8,2777.4,0.255]
[1740263422900,3.59997,2777.8,2777.3,7.66190526]
[1740263423078,3.60074,2777.2,2776.8,0.774]
[1740263423474,4.37253,2777.3,2776.8,0.774]
[1740263423679,3.60091,2777.1,2776.8,0.774]
[1740263423977,3.60107,2777.0,2776.6,5.24]
[1740263424180,3.60107,2777.0,2776.6,6.0368]
[1740263424581,3.60123,2776.9,2776.6,6.0368]
[1740263424801,3.60139,2776.7,2776.6,5.24]
[1740263425098,3.60193,2776.3,2776.1,6.85990526]
[1740263426066,3.60193,2776.3,2776.1,5.24]
[1740263426801,3.60204,2776.2,2776.1,5.24]
[1740263427005,3.60204,2776.2,2775.9,1.87490526]
[1740263427371,3.60204,2776.2,2775.9,1.61990526]
[1740263427571,3.60237,2776.0,2775.7,8.97390526]
[1740263427797,3.60254,2775.9,2775.7,8.97390526]
[1740263428025,3.60254,2775.9,2775.7,7.354]
[1740263429019,4.40697,2776.0,2775.7,7.354]
[1740263429204,3.60237,2776.0,2775.7,7.354]
[1740263429584,3.60245,2775.9,2775.7,7.354]
[1740263430213,3.60237,2776.0,2775.7,7.354]
[1740263430500,3.60256,2775.8,2775.7,7.354]
[1740263431873,3.60288,2775.6,2775.2,1.61990526]
[1740263432684,3.60296,2775.5,2775.2,1.61990526]
[1740263433307,3.60288,2775.6,2775.2,1.61990526]
[1740263433675,3.60304,2775.5,2775.2,1.61990526]
[1740263434816,3.60288,2775.6,2775.2,1.61990526]
[1740263434998,3.60297,2775.5,2775.2,1.61990526]
[1740263435199,7.96843,2775.8,2775.2,1.61990526]
[1740263435418,5.162593,2775.8,2775.4,1.61990526]
[1740263435914,3.60269,2775.7,2775.4,1.61990526]
[1740263436587,3.60269,2775.7,2775.1,9.8832]
[1740263436994,8.765263,2775.8,2775.1,9.8832]
[1740263437822,3.60236,2776.0,2775.1,5.495]
[1740263438003,3.60217,2776.1,2775.5,0.815]
[1740263438389,4.37003,2776.2,2775.5,0.815]
[1740263438614,3.60231,2776.0,2775.5,0.815]
[1740263445232,4.862043,2776.2,2775.5,0.815]
[1740263445434,3.60187,2776.4,2775.6,3.60275]
[1740263445435,3.60193,2776.3,2775.6,3.60275]
[1740263446300,3.60193,2776.3,2775.6,5.24]
[1740263446499,3.60193,2776.3,2775.8,0.8268]
[1740263446826,0.8139,2776.4,2775.9,3.60243]
[1740263447027,4.41569,2776.4,2775.8,4.42935]
[1740263448940,3.60159,2776.6,2776.0,3.6023]
[1740263449101,3.60176,2776.5,2775.9,4.43086]
[1740263450541,3.60148,2776.7,2776.2,3.60204]
[1740263450838,5.12358,2776.9,2776.3,4.43041]
[1740263450996,5.12358,2776.9,2776.3,0.8285]
[1740263451315,3.60096,2777.1,2776.4,3.60176]
[1740263451316,3.60094,2777.1,2776.4,3.60176]
[1740263451836,4.40297,2777.2,2776.6,3.60144]
[1740263452537,4.40297,2777.2,2776.7,0.8285]
[1740263452906,8.00382,2777.2,2776.7,0.8285]
[1740263453134,3.60087,2777.1,2776.7,0.8285]
[1740263458912,7.20183,2777.1,2776.7,0.8285]
[1740263459846,3.60107,2777.0,2776.7,0.8285]
[1740263460216,3.60079,2777.2,2776.7,0.8285]
[1740263460511,3.60088,2777.1,2776.7,0.8285]
[1740263462048,3.60104,2777.0,2776.7,0.8285]
[1740263465855,0.7638,2777.6,2776.7,0.8285]
[1740263466022,3.60084,2777.2,2776.7,4.42989]
[1740263466953,3.60089,2777.1,2776.7,4.42989]
[1740263472445,3.60089,2777.1,2776.7,0.8285]
[1740263473972,0.7638,2777.6,2776.7,0.8285]
[1740263474199,0.8155,2777.1,2776.7,0.8285]
[1740263474344,3.601,2777.0,2776.7,0.8285]
[1740263476447,3.60116,2776.9,2776.7,0.8285]
[1740263476855,3.601,2777.0,2776.7,0.8285]
[1740263482151,3.60089,2777.1,2776.7,0.8285]
[1740263483969,3.60103,2777.0,2776.7,0.8285]
[1740263484165,3.60126,2776.8,2776.5,0.7568]
[1740263493061,3.60142,2776.7,2776.5,0.7568]
[1740263494699,3.60142,2776.7,2776.4,5.24]
[1740263494700,3.60155,2776.6,2776.4,5.24]
[1740263495873,3.60191,2776.3,2776.2,5.24]
[1740263496087,3.60204,2776.2,2776.1,0.255]
[1740263496281,3.60204,2776.2,2775.9,0.8098]
[1740263498132,3.60204,2776.2,2775.9,0.92252639]
[1740263499611,3.60204,2776.2,2775.9,0.8098]
[1740263500700,0.8141,2776.1,2775.8,0.255]
[1740263501068,3.60204,2776.2,2775.8,0.255]
[1740263501366,3.60204,2776.2,2775.8,0.36772712]
[1740263501569,3.60217,2776.1,2775.8,0.70279554]
[1740263502078,3.60204,2776.2,2775.8,0.70279554]
[1740263502280,3.60217,2776.1,2775.8,0.70279554]
[1740263502678,3.60217,2776.1,2775.8,0.59006842]
[1740263503009,3.60217,2776.1,2775.8,0.255]
[1740263511815,3.60211,2776.2,2775.8,0.255]
[1740263516120,3.60204,2776.2,2775.8,0.255]
[1740263522036,3.60204,2776.2,2775.8,0.36772432]
[1740263523839,3.60204,2776.2,2775.8,0.255]
[1740263524914,7.20419,2776.2,2775.8,0.255]
[1740263525147,7.20419,2776.2,2775.9,0.11272497]
[1740263526525,3.60204,2776.2,2775.8,0.255]
[1740263526726,7.20418,2776.2,2775.8,0.255]
[1740263527128,3.60204,2776.2,2775.8,0.255]
[1740263528753,7.20417,2776.2,2775.8,0.255]
[1740263528951,3.60204,2776.2,2775.8,0.255]
[1740263530253,3.60204,2776.2,2775.9,0.11272489]
[1740263531252,7.20416,2776.2,2775.9,0.11272489]
[1740263531750,3.60204,2776.2,2775.9,0.11272489]
[1740263532425,3.60204,2776.2,2775.8,0.255]
[1740263533861,7.20419,2776.2,2775.8,0.255]
[1740263534066,3.60204,2776.2,2775.8,0.255]
[1740263535057,3.60204,2776.2,2775.9,0.11272471]
[1740263536431,3.60204,2776.2,2776.0,0.11272471]
[1740263538059,3.60204,2776.2,2775.9,0.7835]
[1740263541065,3.60204,2776.2,2776.0,0.11272383]
[1740263543072,3.60204,2776.2,2775.9,0.7835]
[1740263546676,3.60204,2776.2,2776.0,0.11272457]
[1740263547871,7.20416,2776.2,2776.0,0.11272457]
[1740263548176,7.20416,2776.2,2775.9,0.7835]
[1740263548775,3.60204,2776.2,2775.9,0.7835]
[1740263553382,3.60204,2776.2,2776.0,0.11272519]
[1740263553542,3.60218,2776.1,2776.0,0.11272519]
[1740263561291,3.60218,2776.1,2775.8,0.255]
[1740263563760,3.60218,2776.1,2775.9,0.11272939]
[1740263565391,3.60218,2776.1,2775.8,0.255]
[1740263565799,0.7764,2776.2,2775.7,6.05]
[1740263566097,0.7764,2776.2,2775.3,5.24]
[1740263566098,3.60308,2775.4,2775.3,5.24]
[1740263566272,3.60334,2775.2,2775.1,5.495]
[1740263566990,3.60322,2775.3,2775.1,5.495]
[1740263570684,3.60322,2775.3,2775.1,5.24]
[1740263577119,0.7565,2775.2,2775.1,5.24]
[1740263583526,3.60322,2775.3,2775.1,5.24]
[1740263585065,3.60334,2775.2,2775.1,5.24]
[1740263587957,3.60356,2775.1,2774.9,5.24]
[1740263588289,3.60356,2775.1,2774.7,1.62078385]
[1740263588290,3.60381,2774.9,2774.7,1.62078385]
[1740263588412,3.60386,2774.8,2774.6,1.033]
[1740263589356,3.60386,2774.8,2774.5,1.87578385]
[1740263591363,3.60362,2775.0,2774.5,1.87578385]
[1740263591550,3.60373,2774.9,2774.5,1.87578385]
[1740263597494,3.60373,2774.9,2774.6,0.11278106]
[1740263599609,3.60373,2774.9,2774.5,1.87578385]
[1740263602797,3.60373,2774.9,2774.6,0.11277868]
[1740263604672,3.60373,2774.9,2774.5,1.87578385]
[1740263607978,3.60373,2774.9,2774.6,0.11277771]
[1740263609924,3.60373,2774.9,2774.7,0.11277771]
[1740263611821,3.60373,2774.9,2774.5,1.87578385]
[1740263611987,4.37523,2774.9,2774.4,7.93018385]
[1740263612993,4.37523,2774.9,2774.5,0.11277905]
[1740263614327,4.37523,2774.9,2774.6,0.11277905]
[1740263616007,4.37523,2774.9,2774.4,7.93018385]
[1740263619421,4.37523,2774.9,2774.4,7.11578385]
[1740263634894,0.7563,2774.7,2774.3,0.71760853]
[1740263635176,4.36048,2774.6,2774.1,0.255]
[1740263635891,4.36048,2774.6,2774.2,1.62078385]
[1740263636052,0.7563,2774.6,2774.2,1.62078385]
[1740263636786,0.7563,2774.4,2774.0,7.11578385]
[1740263637082,0.7563,2774.4,2774.2,1.62078385]
[1740263637431,1.192325,2774.6,2774.2,1.62078385]
[1740263637633,3.60432,2774.5,2773.8,0.70489986]
[1740263637859,4.36085,2774.3,2773.9,1.62078385]
[1740263639554,3.60466,2774.2,2773.9,1.62078385]
[1740263640246,0.8218,2774.1,2773.7,5.97740669]
[1740263640571,4.42667,2774.1,2773.7,7.11578385]
[1740263641013,0.80314,2774.1,2773.7,5.24]
[1740263641173,3.60509,2773.9,2773.7,5.24]
[1740263641332,3.60509,2773.9,2773.4,1.87578385]
[1740263641533,0.8218,2774.0,2773.4,5.48141385]
[1740263641732,0.8218,2774.0,2773.4,5.22641385]
[1740263641939,0.8218,2774.0,2773.4,5.48141385]
[1740263643766,3.60454,2774.3,2773.6,1.62078385]
[1740263643943,0.8218,2774.2,2773.6,5.22618385]
[1740263645146,3.60485,2774.1,2773.6,1.62078385]
[1740263645775,0.8218,2773.9,2773.6,1.62078385]
[1740263645956,3.60536,2773.7,2773.2,7.618]
[1740263646152,3.60548,2773.6,2773.2,8.98378385]
[1740263646366,0.8218,2773.8,2773.2,9.23878385]
[1740263646572,3.60554,2773.6,2773.2,9.23878385]
[1740263646875,3.60554,2773.6,2773.2,8.98378385]
[1740263647072,3.60554,2773.6,2773.2,9.23878385]
[1740263647289,3.60554,2773.6,2773.2,8.98378385]
[1740263647449,3.60529,2773.7,2773.2,9.23878385]
[1740263647651,3.60562,2773.5,2773.2,7.618]
[1740263649850,4.42724,2773.6,2773.2,7.618]
[1740263650188,3.60544,2773.6,2773.2,7.363]
[1740263650390,3.60581,2773.3,2773.2,7.363]
[1740263650888,3.60569,2773.4,2773.2,7.363]
[1740263653522,3.60581,2773.3,2773.2,7.363]
[1740263653711,4.36621,2773.3,2773.2,7.363]
[1740263654383,4.36621,2773.3,2772.9,6.86078385]
[1740263654566,3.60602,2773.2,2772.9,6.86078385]
[1740263655094,3.6062,2773.0,2772.9,6.86078385]
[1740263655393,7.97218,2773.3,2772.9,5.24]
[1740263655693,3.60594,2773.2,2772.9,5.24]
[1740263656375,5.243224,2773.3,2772.7,1.62078385]
[1740263656695,3.60601,2773.2,2772.7,1.62078385]
[1740263656892,3.60594,2773.2,2772.7,1.62078385]
[1740263657882,4.38495,2773.5,2772.6,0.255]
[1740263658165,4.38553,2773.1,2772.6,1.87578385]
[1740263658495,7.9917,2773.1,2772.6,1.87578385]
[1740263658682,7.9917,2773.1,2772.6,1.62078385]
[1740263658683,1.57857,2773.1,2772.6,1.62078385]
[1740263658890,3.6062,2773.0,2772.6,1.62078385]
[1740263659407,5.18465,2773.1,2772.6,1.62078385]
[1740263659561,8.79081,2773.1,2772.6,1.62078385]
[1740263659761,3.6062,2773.0,2772.7,1.62078385]
[1740263661298,1.57857,2773.1,2772.7,1.62078385]
[1740263661487,4.38549,2773.1,2772.7,1.62078385]
[1740263661675,3.60628,2773.0,2772.7,1.62078385]
[1740263661879,3.60635,2772.9,2772.7,1.62078385]
[1740263665088,3.60646,2772.9,2772.5,1.87578385]
[1740263665262,3.60653,2772.8,2772.5,1.87578385]
[1740263665595,4.42786,2772.8,2772.5,1.62078385]
[1740263673906,4.42786,2772.8,2772.3,2.41428385]
[1740263673907,3.6068,2772.6,2772.3,2.41428385]
[1740263674072,7.21361,2772.6,2772.3,2.41428385]
[1740263674274,3.6068,2772.6,2772.3,2.41428385]
[1740263674485,3.60688,2772.5,2772.3,2.41428385]
[1740263674818,3.60688,2772.5,2772.3,1.62078385]
[1740263676519,3.60688,2772.5,2772.2,5.24]
[1740263676676,4.328248,2772.5,2772.1,2.44048385]
[1740263679031,4.328248,2772.5,2771.9,5.97562553]
[1740263679032,0.8321,2772.4,2771.9,5.24]
[1740263679234,3.60711,2772.3,2771.9,5.24]
[1740263679960,0.8321,2772.2,2771.9,5.24]
[1740263681237,0.8321,2772.2,2771.7,0.7513]
[1740263681532,3.6074,2772.1,2771.7,0.7513]
[1740263684133,0.7765,2772.0,2771.4,14.95194095]
[1740263684435,4.384,2772.0,2771.4,14.22778385]
[1740263685725,3.60775,2771.9,2771.4,14.22778385]
[1740263687340,3.60782,2771.8,2771.4,14.22778385]
[1740263687838,3.60782,2771.8,2771.4,7.367]
[1740263687839,0.7765,2771.7,2771.4,7.367]
[1740263688246,3.60804,2771.6,2771.4,7.367]
[1740263692416,3.60815,2771.5,2771.4,7.367]
[1740263692753,4.407419,2771.5,2771.1,1.0051]
[1740263693644,0.799269,2771.5,2771.1,1.0051]
[1740263693954,3.60829,2771.4,2771.1,1.0051]
[1740263694351,3.60829,2771.4,2771.1,0.255]
[1740263696958,0.799269,2771.5,2771.1,0.255]
[1740263697151,4.407509,2771.5,2771.1,0.255]
[1740263697534,3.60829,2771.4,2771.1,0.255]
[1740263698933,3.60829,2771.4,2771.0,6.86078385]
[1740263698934,4.4098559,2771.4,2771.0,6.86078385]
[1740263699151,3.60848,2771.3,2771.0,6.86078385]
[1740263700566,0.7765,2771.7,2771.0,6.86078385]
[1740263700771,2.61470485,2772.2,2771.4,1.62078385]
[1740263700772,0.7649,2771.9,2771.4,1.62078385]
[1740263700978,4.3723,2772.1,2771.6,1.62078385]
[1740263701209,0.8423571,2772.0,2771.6,1.62078385]
[1740263701854,3.60764,2771.9,2771.6,1.62078385]
[1740263702059,0.8423571,2772.0,2771.6,1.62078385]
[1740263703627,5.24,2772.3,2771.9,4.39139]
[1740263703818,3.60671,2772.7,2772.0,1.62078385]
[1740263704010,3.60672,2772.6,2772.0,1.62078385]
[1740263705061,3.60671,2772.7,2772.1,3.60737]
[1740263705262,3.60671,2772.7,2772.0,5.22826385]
[1740263705490,0.437161,2772.6,2772.3,0.7904]
[1740263705692,0.7649,2772.8,2772.3,0.7904]
[1740263705880,4.37145,2772.8,2772.3,0.7904]
[1740263706676,0.7649,2772.8,2772.3,0.7904]
[1740263706878,3.60639,2772.9,2772.3,0.7904]
[1740263707095,3.757,2773.1,2772.3,4.3975]
[1740263707096,0.757,2773.1,2772.3,4.3975]
[1740263707406,0.757,2773.1,2772.3,5.17256922]
[1740263707610,0.757,2773.1,2772.4,3.6069]
[1740263707808,3.60633,2772.9,2772.5,0.256]
[1740263708011,4.36319,2773.1,2772.5,0.256]
[1740263708193,0.757,2773.1,2772.5,0.256]
[1740263708392,3.60621,2773.0,2772.5,0.256]
[1740263708593,4.042531,2773.0,2772.5,0.256]
[1740263710517,3.60635,2772.9,2772.5,0.256]
[1740263715741,3.60654,2772.8,2772.5,0.256]
[1740263716344,4.40227,2773.3,2772.7,0.7614]
[1740263716543,3.60596,2773.2,2772.7,0.7614]
[1740263716745,0.7964,2773.0,2772.4,0.7614]
[1740263716936,3.60685,2772.5,2772.3,5.496]
[1740263717565,3.60635,2772.9,2772.2,0.7614]
[1740263717761,3.60727,2772.2,2772.0,0.7614]
[1740263718266,7.21462,2772.2,2771.9,0.256]
[1740263718767,3.60727,2772.2,2771.9,0.256]
[1740263718962,4.40345,2772.4,2771.9,0.256]
[1740263719163,3.60728,2772.2,2771.9,0.256]
[1740263720153,3.60719,2772.3,2771.9,0.256]
[1740263720362,3.60733,2772.2,2771.9,0.256]
[1740263722757,3.60719,2772.3,2771.9,0.256]
[1740263723160,7.21441,2772.3,2771.9,0.256]
[1740263724362,3.60719,2772.3,2771.9,0.256]
[1740263724568,7.2144,2772.3,2771.9,0.256]
[1740263724894,3.60719,2772.3,2771.9,0.256]
[1740263725066,7.21439,2772.3,2771.9,0.256]
[1740263725605,3.60719,2772.3,2771.9,0.256]
[1740263725899,7.21439,2772.3,2771.9,0.256]
[1740263726396,3.60782,2771.8,2771.5,0.7684]
[1740263726755,3.60766,2771.9,2771.5,0.7684]
[1740263730376,0.8249,2771.8,2771.1,9.3198267]
[1740263730581,3.60802,2771.6,2771.2,0.256]
[1740263730813,3.60817,2771.5,2771.2,0.256]
[1740263730989,7.21644,2771.5,2771.2,0.256]
[1740263731191,3.60817,2771.5,2771.2,0.256]
[1740263731394,3.60833,2771.4,2771.2,0.256]
[1740263731681,3.60817,2771.5,2771.2,0.256]
[1740263732111,3.60834,2771.4,2771.1,6.0084]
[1740263732914,3.60847,2771.3,2770.8,16.66740608]
[1740263733117,3.60855,2771.2,2770.8,7.369]
[1740263733316,3.60855,2771.2,2770.9,0.256]
[1740263734479,3.60847,2771.3,2770.9,0.256]
[1740263734480,7.21695,2771.3,2770.9,0.256]
[1740263734797,0.8249,2771.4,2770.9,0.256]
[1740263735000,4.43318,2771.4,2770.9,0.256]
[1740263735206,3.60843,2771.3,2770.9,0.256]
[1740263735622,3.60843,2771.3,2770.8,0.256]
[1740263736122,3.60862,2771.2,2770.6,10.10211982]
[1740263736287,3.60862,2771.2,2770.7,0.256]
[1740263736728,7.21691,2771.3,2770.7,0.256]
[1740263736892,4.412591,2771.3,2770.6,6.74882758]
[1740263737107,3.60865,2771.2,2770.6,6.2644]
[1740263739323,3.60841,2771.3,2770.6,6.2644]
[1740263739500,3.60862,2771.2,2770.6,6.2644]
[1740263740085,3.6087,2771.1,2770.6,6.2644]
[1740263741216,3.6087,2771.1,2770.6,7.66091193]
[1740263741537,3.60855,2771.2,2770.6,7.66091193]
[1740263742029,4.42923,2771.1,2770.6,5.496]
[1740263742205,3.6088,2771.0,2770.6,5.496]
[1740263742409,3.5488,2771.0,2770.6,5.496]
[1740263743041,3.5488,2771.0,2770.6,5.24]
[1740263745240,3.60909,2770.8,2770.6,5.24]
[1740263745731,3.5488,2771.0,2770.6,5.24]
[1740263745939,3.60895,2770.9,2770.6,5.24]
[1740263746580,3.60918,2770.8,2770.6,5.24]
[1740263747483,3.6092,2770.7,2770.4,0.7638]
[1740263748185,4.42926,2771.1,2770.4,5.33469922]
[1740263748356,8.03803,2771.1,2770.4,5.33469922]
[1740263749090,3.60908,2770.8,2770.2,8.59329224]
[1740263749269,3.6088,2771.0,2770.3,0.256]
[1740263749778,3.60905,2770.9,2770.3,0.256]
[1740263749937,3.60905,2770.9,2770.4,0.7958]
[1740263750144,3.60925,2770.7,2770.4,0.7958]
[1740263751036,3.60934,2770.6,2770.4,0.7958]
[1740263751883,3.55,2771.0,2770.4,0.7958]
[1740263752086,3.60925,2770.7,2770.4,0.7958]
[1740263752880,3.60894,2770.9,2770.4,0.7958]
[1740263753183,7.21796,2770.9,2770.4,0.7958]
[1740263753485,3.60894,2770.9,2770.4,0.7958]
[1740263753647,7.21797,2770.9,2770.4,0.7958]
[1740263754617,3.60894,2770.9,2770.4,0.7958]
[1740263754820,4.42925,2771.1,2770.4,0.7958]
[1740263755023,3.60855,2771.2,2770.5,4.43469]
[1740263755681,6.60855,2771.2,2770.5,4.43469]
[1740263757344,6.60857,2771.2,2770.5,0.8253]
[1740263757635,3.60882,2771.0,2770.5,0.8253]
[1740263758006,3.60882,2771.0,2770.5,1.42694422]
[1740263758640,3.60872,2771.1,2770.5,1.42694422]
[1740263758836,6.60863,2771.2,2770.5,5.03635422]
[1740263759037,3.60874,2771.1,2770.5,1.42694422]
[1740263759228,10.21729,2771.2,2770.5,5.03639422]
[1740263759535,3.60877,2771.1,2770.5,1.42694422]
[1740263759894,3.60877,2771.1,2770.6,0.7929]
[1740263760293,4.33662243,2772.2,2771.1,0.7929]
[1740263760536,0.72936243,2772.2,2771.5,0.7929]
[1740263760739,0.72936243,2772.2,2771.4,3.35329224]
[1740263760939,0.72936243,2772.2,2771.7,0.7929]
[1740263761140,0.72936243,2772.2,2771.8,3.60769]
[1740263761370,0.752,2772.6,2771.8,3.60768]
[1740263761673,1.3512,2772.6,2771.7,4.14619224]
[1740263761881,4.95802,2772.6,2771.8,7.21536]
[1740263762171,4.35882,2772.6,2771.9,3.60762]
[1740263762337,0.752,2772.8,2772.3,3.60708]
[1740263762532,4.35814,2773.1,2772.3,3.60702]
[1740263762732,0.752,2773.1,2772.6,0.7929]
[1740263762938,3.60602,2773.2,2772.6,0.7929]
[1740263763133,5.24,2773.4,2772.7,3.60651]
[1740263763341,3.60587,2773.3,2772.8,0.261]
[1740263763563,3.60568,2773.4,2772.8,0.261]
[1740263764272,3.6055,2773.6,2772.8,0.261]
[1740263764470,8.84518,2773.8,2772.9,3.60629]
[1740263764676,3.60543,2773.6,2772.8,3.86736]
[1740263764842,3.60543,2773.6,2772.9,0.386736]
[1740263765766,0.55,2773.7,2772.9,0.386736]
[1740263765975,4.15529,2773.7,2773.0,3.60618]
[1740263767984,7.15529,2773.7,2773.0,3.60618]
[1740263771853,3.60548,2773.6,2772.9,3.993056]
[1740263772047,7.15529,2773.7,2773.0,0.7860426]
[1740263772283,7.15529,2773.7,2773.0,4.3921826]
[1740263772895,5.24,2773.8,2773.1,0.7641]
[1740263773097,3.60529,2773.7,2773.1,0.7641]
[1740263773287,7.21068,2773.7,2773.1,0.7641]
[1740263773609,3.60529,2773.7,2773.2,0.51562926]
[1740263779078,3.60545,2773.6,2773.2,0.51562926]
[1740263780517,3.60553,2773.6,2773.2,0.51562926]
[1740263782377,3.60559,2773.5,2773.2,0.51562926]
[1740263783503,3.60553,2773.6,2773.2,0.51562926]
[1740263783835,3.60557,2773.5,2773.2,0.51562926]
[1740263784015,3.60557,2773.5,2773.1,0.7641]
[1740263790029,3.60553,2773.6,2773.1,0.7641]
[1740263790238,3.60572,2773.4,2773.1,0.7641]
[1740263799228,3.60581,2773.3,2773.1,0.7641]
[1740263800035,3.6064,2772.9,2772.8,0.259]
[1740263800202,7.21284,2772.9,2772.8,0.259]
[1740263802235,3.60646,2772.8,2772.7,1.62474229]
[1740263803812,3.60646,2772.8,2772.6,0.7938]
[1740263803813,3.60659,2772.7,2772.6,0.7938]
[1740263804424,3.60659,2772.7,2772.6,2.41854229]
[1740263807749,3.60645,2772.9,2772.6,2.41854229]
[1740263807954,3.6065,2772.8,2772.6,2.41854229]
[1740263815169,3.6065,2772.8,2772.6,1.62474229]
[1740263816673,3.6065,2772.8,2772.5,0.258]
[1740263831090,3.60634,2772.9,2772.5,0.258]
[1740263837163,0.7757,2773.1,2772.6,1.62474229]
[1740263837498,0.7848,2773.4,2772.9,5.23098229]
[1740263837699,4.041107,2773.7,2773.2,1.62474229]
[1740263837700,4.825907,2773.7,2773.2,1.62474229]
[1740263837998,1.220517,2773.7,2773.2,2.40124229]
[1740263838205,0.7848,2773.7,2773.2,2.40124229]
[1740263838501,4.39009,2773.7,2773.2,2.40124229]
[1740263838691,0.7848,2773.7,2773.2,2.40124229]
[1740263838997,0.7848,2773.7,2773.4,1.62474229]
[1740263839393,3.60516,2773.8,2773.4,1.62474229]
[1740263841507,3.60529,2773.7,2773.4,1.62474229]
[1740263846207,3.60529,2773.7,2773.2,6.00710229]
[1740263846413,3.60529,2773.7,2773.3,0.60071023]
[1740263847509,0.55,2773.9,2772.9,6.42065147]
[1740263847723,4.36535,2773.4,2773.0,0.257]
[1740263848107,7.97113,2773.4,2773.0,0.257]
[1740263848425,4.36535,2773.4,2773.0,0.257]
[1740263850627,4.36535,2773.4,2773.1,1.62474229]
[1740263852530,7.97114,2773.4,2773.1,1.62474229]
[1740263852727,4.36535,2773.4,2773.1,1.62474229]
[1740263852936,7.9711,2773.4,2773.1,1.62474229]
[1740263853613,4.36535,2773.4,2773.1,1.62474229]
[1740263854019,7.9711,2773.4,2773.1,1.62474229]
[1740263855740,4.36535,2773.4,2773.1,1.62474229]
[1740263857037,7.9711,2773.4,2773.1,1.62474229]
[1740263857208,4.36535,2773.4,2773.1,1.62474229]
[1740263857414,7.97111,2773.4,2773.1,1.62474229]
[1740263857732,4.36535,2773.4,2773.1,1.62474229]
[1740263859051,3.60587,2773.3,2773.1,1.62474229]
[1740263859229,3.60587,2773.3,2773.0,0.256]
[1740263860039,3.60569,2773.4,2773.0,0.256]
[1740263860247,3.60569,2773.4,2773.0,1.26870231]
[1740263863447,3.60569,2773.4,2773.0,1.01270231]
[1740263863743,3.60569,2773.4,2773.0,1.26870231]
[1740263865255,4.15529,2773.7,2773.2,0.8232]
[1740263865642,3.60556,2773.5,2773.2,0.8232]
[1740263865843,0.8056,2773.8,2773.2,0.8232]
[1740263866040,3.6053,2773.7,2773.2,0.8232]
[1740263869556,4.41076,2773.8,2773.2,1.45419123]
[1740263869761,9.6047,2774.0,2773.3,5.23054229]
[1740263869964,3.6051,2773.9,2773.3,5.23052229]
[1740263870263,3.6051,2773.9,2773.4,3.60565]
[1740263873467,0.7597,2774.0,2773.4,3.60565]
[1740263873640,3.60506,2773.9,2773.4,4.27413835]
[1740263876967,3.60506,2773.9,2773.5,0.7654]
[1740263877141,7.96958,2774.0,2773.5,0.7654]
[1740263877342,4.3646,2774.0,2773.5,0.7654]
[1740263878188,4.3646,2774.0,2773.5,4.37091]
[1740263879045,4.3646,2774.0,2773.5,5.99565229]
[1740263880286,4.3646,2774.0,2773.5,2.39014229]
[1740263880476,3.60505,2773.9,2773.5,2.39014229]
[1740263880871,0.7597,2774.0,2773.5,3.41712835]
[1740263881193,4.3646,2774.0,2773.5,3.41712835]
[1740263881389,4.3646,2774.0,2773.5,7.02265835]
[1740263883091,0.7604,2774.3,2773.6,3.60536]
[1740263883256,3.60476,2774.2,2773.6,3.60536]
[1740263883781,3.60484,2774.1,2773.6,3.60536]
[1740263883963,3.60476,2774.2,2773.7,0.801]
[1740263884165,0.7604,2774.3,2773.7,2.42574229]
[1740263884376,3.60465,2774.2,2773.7,6.03096229]
[1740263884972,0.7604,2774.3,2773.7,2.42574229]
[1740263885289,0.7604,2774.3,2773.7,0.801]
[1740263885290,3.60504,2773.9,2773.7,0.801]
[1740263885664,3.60516,2773.8,2773.7,0.801]
[1740263885992,3.60504,2773.9,2773.7,0.801]
[1740263888574,3.60474,2774.2,2773.7,2.42574229]
[1740263888784,7.20945,2774.2,2773.8,0.60311523]
[1740263889016,7.20945,2774.2,2773.9,0.8083]
[1740263889297,3.60479,2774.1,2773.9,0.8083]
[1740263889656,3.60489,2774.1,2773.9,0.8083]
[1740263890299,3.6049,2774.0,2773.9,0.8083]
[1740263890458,3.60484,2774.1,2773.9,0.8083]
[1740263890663,7.20938,2774.2,2773.9,0.8083]
[1740263891186,3.60478,2774.1,2773.9,0.8083]
[1740263891695,3.60448,2774.4,2773.9,0.8083]
[1740263891992,7.20948,2774.2,2773.9,0.8083]
[1740263892577,3.60474,2774.2,2773.9,0.8083]
[1740263893492,3.8309,2774.6,2773.9,1.41212623]
[1740263893693,3.6044,2774.4,2773.9,1.41212623]
[1740263894297,3.60451,2774.3,2773.9,1.41212623]
[1740263895265,3.6047,2774.2,2773.9,1.41212623]
[1740263896598,7.20945,2774.2,2773.9,1.41212623]
[1740263897769,3.60479,2774.1,2773.9,1.41212623]
[1740263902789,3.60479,2774.1,2773.9,0.8083]
[1740263903695,3.60458,2774.3,2773.9,0.8083]
[1740263903882,0.8309,2774.6,2773.9,0.8083]
[1740263904074,3.60467,2774.2,2773.9,0.8083]
[1740263907111,3.60452,2774.3,2773.9,0.8083]
[1740263907304,3.60446,2774.4,2773.9,7.02791252]
[1740263909597,7.20892,2774.4,2773.9,7.02791252]
[1740263910799,3.60451,2774.3,2773.9,7.02791252]
[1740263911110,3.60451,2774.3,2773.9,3.42288252]
[1740263911417,3.6049,2774.0,2773.9,0.8083]
[1740263918524,3.60477,2774.1,2773.9,0.8083]
[1740263926318,3.60532,2773.7,2773.5,5.39]
[1740263926518,3.6052,2773.8,2773.1,2.38104229]